[Event "Blixt-SM 2025"]
[Site "Norrköping, Sweden"]
[Date "2025.09.26"]
[Round "5.5"]
[White "Sandberg, Lucas"]
[Black "Iwraeus, Lowe"]
[Result "1/2-1/2"]
[TimeControl "3 min + 2 sec/move"]
[WhiteElo "2268"]
[BlackElo "2060"]

1. e4 {[%emt 00:11:42]} e6 {[%emt 00:00:02]} 2. Nc3 {[%clk 00:03:02]} {[%emt
00:00:04]} d5 {[%clk 00:03:03]} {[%emt 00:00:02]} 3. Nf3 {[%clk 00:03:03]} dxe4
{[%clk 00:02:58]} {[%emt 00:00:06]} 4. Nxe4 {[%clk 00:03:03]} {[%emt 00:00:01]}
Be7 {[%clk 00:02:59]} {[%emt 00:00:01]} 5. d4 {[%clk 00:03:04]} {[%emt
00:00:02]} Nf6 {[%clk 00:03:00]} {[%emt 00:00:02]} 6. Ng3 {[%clk 00:03:04]}
{[%emt 00:00:01]} c5 {[%clk 00:02:57]} {[%emt 00:00:06]} 7. c3 {[%clk
00:03:05]} {[%emt 00:00:01]} cxd4 {[%clk 00:02:56]} {[%emt 00:00:03]} 8. Nxd4
{[%clk 00:03:06]} Bd7 {[%clk 00:02:55]} {[%emt 00:00:03]} 9. Bd3 {[%clk
00:03:01]} {[%emt 00:00:06]} Nc6 {[%clk 00:02:55]} {[%emt 00:00:02]} 10. Nf3
{[%clk 00:02:57]} {[%emt 00:00:07]} Qc7 {[%clk 00:02:49]} {[%emt 00:00:09]} 11.
O-O {[%clk 00:02:56]} {[%emt 00:00:01]} Rd8 {[%clk 00:02:41]} {[%emt 00:00:10]}
12. Qe2 {[%clk 00:02:57]} a6 {[%clk 00:02:26]} {[%emt 00:00:18]} 13. Re1 {[%clk
00:02:56]} {[%emt 00:00:03]} O-O {[%clk 00:02:25]} {[%emt 00:00:03]} 14. Ne4
{[%clk 00:02:56]} Nxe4 {[%clk 00:01:59]} {[%emt 00:00:29]} 15. Qxe4 {[%clk
00:02:57]} g6 {[%clk 00:02:00]} 16. Bh6 {[%clk 00:02:58]} Rfe8 {[%clk
00:02:01]} {[%emt 00:00:02]} 17. Rad1 {[%clk 00:02:58]} {[%emt 00:00:02]} b5
{[%clk 00:01:48]} {[%emt 00:00:15]} 18. a4 {[%clk 00:02:47]} {[%emt 00:00:12]}
bxa4 {[%clk 00:01:37]} {[%emt 00:00:13]} 19. h4 {[%clk 00:02:41]} {[%emt
00:00:08]} Bf6 {[%clk 00:01:21]} {[%emt 00:00:18]} 20. Bg5 {[%clk 00:02:36]}
{[%emt 00:00:07]} Bxg5 {[%clk 00:01:15]} {[%emt 00:00:08]} 21. Nxg5 {[%clk
00:02:36]} {[%emt 00:00:02]} Bc8 {[%clk 00:01:13]} {[%emt 00:00:05]} 22. Qxa4
{[%clk 00:02:24]} {[%emt 00:00:13]} Bb7 {[%clk 00:01:12]} {[%emt 00:00:03]} 23.
Qg4 {[%clk 00:02:16]} {[%emt 00:00:09]} Ne7 {[%clk 00:00:59]} {[%emt 00:00:17]}
24. Ne4 {[%clk 00:02:11]} {[%emt 00:00:06]} Bxe4 {[%clk 00:00:59]} {[%emt
00:00:03]} 25. Qxe4 {[%clk 00:02:11]} {[%emt 00:00:01]} Qc5 {[%clk 00:00:54]}
{[%emt 00:00:07]} 26. Bxa6 {[%clk 00:02:09]} {[%emt 00:00:04]} Nf5 {[%clk
00:00:53]} {[%emt 00:00:03]} 27. Bd3 {[%clk 00:02:02]} {[%emt 00:00:09]} Rb8
{[%clk 00:00:52]} {[%emt 00:00:03]} 28. Rd2 {[%clk 00:01:56]} {[%emt 00:00:09]}
Red8 {[%clk 00:00:52]} {[%emt 00:00:01]} 29. Red1 {[%clk 00:01:57]} Qe7 {[%clk
00:00:52]} {[%emt 00:00:03]} 30. g3 {[%clk 00:01:57]} {[%emt 00:00:02]} h5
{[%clk 00:00:49]} {[%emt 00:00:05]} 31. Qf3 {[%clk 00:01:57]} {[%emt 00:00:01]}
Ng7 {[%clk 00:00:49]} {[%emt 00:00:03]} 32. Be4 {[%clk 00:01:51]} {[%emt
00:00:08]} Rxd2 {[%clk 00:00:48]} 33. Rxd2 {[%clk 00:01:52]} Ne8 {[%clk
00:00:49]} {[%emt 00:00:02]} 34. Qf4 {[%clk 00:01:49]} {[%emt 00:00:05]} Rc8
{[%clk 00:00:45]} {[%emt 00:00:06]} 35. Bf3 {[%clk 00:01:42]} {[%emt 00:00:08]}
Kg7 {[%clk 00:00:44]} {[%emt 00:00:04]} 36. Qe5+ {[%clk 00:01:42]} {[%emt
00:00:02]} Qf6 {[%clk 00:00:42]} {[%emt 00:00:04]} 37. Qxf6+ {[%clk 00:01:40]}
{[%emt 00:00:04]} Nxf6 {[%clk 00:00:43]} {[%emt 00:00:01]} 38. Kg2 {[%clk
00:01:41]} Kf8 {[%clk 00:00:44]} {[%emt 00:00:02]} 39. Rc2 {[%clk 00:01:40]}
{[%emt 00:00:02]} Ke7 {[%clk 00:00:45]} {[%emt 00:00:01]} 40. b4 {[%clk
00:01:41]} Nd7 {[%clk 00:00:46]} {[%emt 00:00:01]} 41. c4 {[%clk 00:01:41]}
{[%emt 00:00:02]} Rb8 {[%clk 00:00:46]} {[%emt 00:00:02]} 42. Rb2 {[%clk
00:01:39]} {[%emt 00:00:04]} Nc5 {[%clk 00:00:40]} {[%emt 00:00:08]} 43. b5
{[%clk 00:01:28]} {[%emt 00:00:14]} Kd6 {[%clk 00:00:38]} {[%emt 00:00:03]} 44.
Ra2 {[%clk 00:01:29]} Rc8 {[%clk 00:00:29]} {[%emt 00:00:11]} 45. Ra7 {[%clk
00:01:29]} {[%emt 00:00:01]} f5 {[%clk 00:00:29]} {[%emt 00:00:02]} 46. b6
{[%clk 00:01:30]} {[%emt 00:00:02]} Rb8 {[%clk 00:00:28]} {[%emt 00:00:03]} 47.
b7 {[%clk 00:00:54]} {[%emt 00:00:37]} Kc7 {[%clk 00:00:28]} {[%emt 00:00:03]}
48. Ra5 {[%clk 00:00:34]} {[%emt 00:00:22]} Nxb7 {[%clk 00:00:28]} {[%emt
00:00:02]} 49. Ra6 {[%clk 00:00:35]} Nd8 {[%clk 00:00:27]} {[%emt 00:00:03]} 50.
c5 {[%clk 00:00:30]} {[%emt 00:00:07]} Rc8 {[%clk 00:00:14]} {[%emt 00:00:14]}
51. Ra7+ {[%clk 00:00:23]} {[%emt 00:00:09]} Kb8 {[%clk 00:00:15]} 52. Ra8+
{[%clk 00:00:25]} Kc7 {[%clk 00:00:16]} {[%emt 00:00:01]} 53. Ra5 {[%clk
00:00:18]} {[%emt 00:00:09]} Kd7 {[%clk 00:00:17]} 54. Kf1 {[%clk 00:00:13]}
{[%emt 00:00:07]} Nc6 {[%clk 00:00:14]} {[%emt 00:00:05]} 55. Ra4 {[%clk
00:00:14]} {[%emt 00:00:02]} Ne5 {[%clk 00:00:14]} {[%emt 00:00:03]} 56. Ra7+
{[%clk 00:00:09]} {[%emt 00:00:06]} Rc7 {[%clk 00:00:11]} {[%emt 00:00:05]} 57.
Rxc7+ {[%clk 00:00:04]} {[%emt 00:00:07]} Kxc7 {[%clk 00:00:13]} 58. Bg2 {[%clk
00:00:05]} Nd3 {[%clk 00:00:12]} {[%emt 00:00:02]} 59. Ke2 {[%clk 00:00:06]}
Nxc5 {[%emt 00:00:02]} 60. Ke3 e5 {[%clk 00:00:14]} {[%emt 00:00:02]} 61. Bd5
{[%clk 00:00:07]} {[%emt 00:00:02]} Nd7 {[%clk 00:00:12]} {[%emt 00:00:03]} 62.
Bf7 {[%clk 00:00:08]} Nf8 {[%clk 00:00:13]} 63. Kd3 {[%clk 00:00:05]} {[%emt
00:00:05]} Kd6 {[%clk 00:00:14]} {[%emt 00:00:01]} 64. Kc4 {[%clk 00:00:07]}
Ke7 {[%clk 00:00:15]} 65. Bd5 {[%clk 00:00:07]} {[%emt 00:00:01]} Kf6 {[%clk
00:00:17]} 66. Kc5 {[%clk 00:00:08]} {[%emt 00:00:02]} e4 {[%clk 00:00:14]}
{[%emt 00:00:05]} 67. Kd6 {[%clk 00:00:09]} {[%emt 00:00:01]} Nh7 {[%clk
00:00:14]} {[%emt 00:00:02]} 68. Ba2 {[%clk 00:00:05]} {[%emt 00:00:06]}
1/2-1/2

[ePGN "0.1;DGT LiveChess/2.2.7"]

[Event "Blixt-SM 2025"]
[Site "Norrköping, Sweden"]
[Date "2025.09.26"]
[Round "7.1"]
[White "Johnson, Daniel"]
[Black "Seo, Jung Min"]
[Result "1/2-1/2"]
[TimeControl "3 min + 2 sec/move"]
[BlackTitle "IM"]
[WhiteElo "2177"]
[BlackElo "2480"]

1. d4 {[%clk 00:03:02]} {[%emt 00:00:02]} Nf6 {[%clk 00:03:04]} 2. c4 {[%clk
00:03:02]} {[%emt 00:00:03]} e6 {[%clk 00:03:05]} 3. Nc3 {[%clk 00:03:03]} Bb4
{[%clk 00:03:06]} 4. Qc2 {[%clk 00:03:05]} c5 {[%clk 00:03:04]} {[%emt
00:00:04]} 5. dxc5 {[%clk 00:03:04]} {[%emt 00:00:03]} O-O {[%clk 00:03:03]}
{[%emt 00:00:02]} 6. Nf3 {[%clk 00:03:04]} {[%emt 00:00:02]} Na6 {[%clk
00:03:03]} {[%emt 00:00:03]} 7. g3 {[%clk 00:03:04]} {[%emt 00:00:02]} Nxc5
{[%clk 00:03:02]} {[%emt 00:00:03]} 8. Bg2 {[%clk 00:03:05]} {[%emt 00:00:01]}
Nce4 {[%clk 00:02:54]} {[%emt 00:00:10]} 9. O-O {[%clk 00:03:04]} {[%emt
00:00:02]} Bxc3 10. bxc3 {[%clk 00:03:05]} Qc7 {[%clk 00:02:56]} 11. Nd4 {[%clk
00:02:59]} {[%emt 00:00:07]} d5 {[%clk 00:02:57]} {[%emt 00:00:02]} 12. cxd5
{[%clk 00:02:56]} {[%emt 00:00:05]} exd5 {[%clk 00:02:58]} 13. Bf4 {[%clk
00:02:56]} {[%emt 00:00:02]} Qc5 {[%clk 00:02:45]} {[%emt 00:00:14]} 14. Rfc1
{[%clk 00:02:56]} {[%emt 00:00:03]} b6 {[%clk 00:02:36]} {[%emt 00:00:12]} 15.
Qb2 {[%clk 00:02:31]} {[%emt 00:00:26]} Ba6 {[%clk 00:02:26]} {[%emt 00:00:12]}
16. Be3 {[%clk 00:02:30]} {[%emt 00:00:03]} Qc8 {[%clk 00:02:16]} {[%emt
00:00:12]} 17. Nf3 {[%clk 00:02:05]} {[%emt 00:00:27]} Re8 {[%clk 00:01:39]}
{[%emt 00:00:39]} 18. Bd4 {[%clk 00:02:00]} {[%emt 00:00:07]} Qc7 {[%clk
00:01:27]} {[%emt 00:00:14]} 19. Re1 {[%clk 00:01:29]} {[%emt 00:00:32]} Bc4
{[%clk 00:01:24]} {[%emt 00:00:05]} 20. Rac1 {[%clk 00:01:27]} {[%emt
00:00:04]} Rac8 {[%clk 00:01:22]} {[%emt 00:00:04]} 21. a3 {[%clk 00:01:18]}
{[%emt 00:00:12]} Nd7 {[%clk 00:01:21]} {[%emt 00:00:03]} 22. Nd2 {[%clk
00:01:14]} {[%emt 00:00:05]} Nxd2 {[%clk 00:01:22]} {[%emt 00:00:02]} 23. Qxd2
{[%clk 00:01:15]} {[%emt 00:00:01]} Nc5 {[%clk 00:01:23]} 24. Qg5 {[%clk
00:00:52]} {[%emt 00:00:25]} Ne6 {[%clk 00:01:23]} {[%emt 00:00:02]} 25. Qh4
{[%clk 00:00:53]} {[%emt 00:00:02]} Nxd4 {[%clk 00:01:20]} {[%emt 00:00:05]} 26.
cxd4 {[%clk 00:00:50]} {[%emt 00:00:05]} Qd6 {[%clk 00:01:08]} {[%emt
00:00:14]} 27. Rc3 {[%clk 00:00:50]} {[%emt 00:00:02]} b5 {[%clk 00:01:04]}
{[%emt 00:00:06]} 28. e4 {[%clk 00:00:19]} {[%emt 00:00:33]} dxe4 {[%clk
00:01:04]} {[%emt 00:00:03]} 29. Rxe4 {[%clk 00:00:20]} {[%emt 00:00:02]} g6
{[%clk 00:00:55]} {[%emt 00:00:10]} 30. Rce3 {[%clk 00:00:16]} {[%emt
00:00:06]} Rxe4 {[%clk 00:00:56]} {[%emt 00:00:01]} 31. Qxe4 {[%clk 00:00:17]}
{[%emt 00:00:01]} Rd8 {[%clk 00:00:56]} {[%emt 00:00:03]} 32. d5 {[%clk
00:00:14]} {[%emt 00:00:05]} Bxd5 {[%clk 00:00:48]} {[%emt 00:00:10]} 33. Qxd5
{[%clk 00:00:13]} {[%emt 00:00:02]} Qxd5 {[%clk 00:00:45]} {[%emt 00:00:06]} 34.
Bxd5 {[%clk 00:00:14]} {[%emt 00:00:01]} Rxd5 {[%clk 00:00:46]} 35. Re8+ {[%clk
00:00:06]} {[%emt 00:00:09]} Kg7 {[%clk 00:00:42]} {[%emt 00:00:07]} 36. Ra8
{[%clk 00:00:07]} Rd7 {[%clk 00:00:39]} {[%emt 00:00:05]} 37. Rb8 {[%clk
00:00:07]} {[%emt 00:00:01]} Rd3 {[%clk 00:00:29]} {[%emt 00:00:12]} 38. Rxb5
{[%clk 00:00:06]} {[%emt 00:00:04]} Rxa3 {[%clk 00:00:30]} 39. h4 {[%clk
00:00:05]} {[%emt 00:00:03]} a5 {[%clk 00:00:31]} 40. Rb6 {[%clk 00:00:06]}
{[%emt 00:00:02]} h5 {[%clk 00:00:31]} {[%emt 00:00:02]} 41. Ra6 {[%clk
00:00:07]} Ra2 {[%clk 00:00:32]} {[%emt 00:00:01]} 42. Kf1 {[%clk 00:00:08]} a4
{[%clk 00:00:33]} {[%emt 00:00:01]} 43. Rb6 {[%clk 00:00:09]} a3 {[%clk
00:00:28]} {[%emt 00:00:07]} 44. Ra6 {[%clk 00:00:10]} Kf8 {[%clk 00:00:28]}
{[%emt 00:00:02]} 45. Kg2 {[%clk 00:00:09]} {[%emt 00:00:02]} Ke8 {[%clk
00:00:26]} {[%emt 00:00:05]} 46. Ra7 {[%clk 00:00:09]} {[%emt 00:00:02]} Kf8
{[%clk 00:00:23]} {[%emt 00:00:05]} 47. Kf3 {[%clk 00:00:10]} {[%emt 00:00:01]}
Kg7 {[%clk 00:00:24]} 48. Ra6 {[%clk 00:00:11]} {[%emt 00:00:02]} Ra1 {[%clk
00:00:23]} {[%emt 00:00:02]} 49. Ke2 {[%clk 00:00:09]} {[%emt 00:00:03]} f6
{[%clk 00:00:08]} {[%emt 00:00:19]} 50. Kf3 {[%clk 00:00:05]} {[%emt 00:00:05]}
Kf7 {[%clk 00:00:10]} 51. Ke3 {[%clk 00:00:05]} {[%emt 00:00:03]} Ke7 {[%clk
00:00:10]} {[%emt 00:00:01]} 52. Kf3 {[%clk 00:00:06]} {[%emt 00:00:02]} g5
{[%clk 00:00:05]} {[%emt 00:00:07]} 53. hxg5 {[%clk 00:00:05]} {[%emt
00:00:03]} fxg5 {[%clk 00:00:07]} 54. Ke3 {[%clk 00:00:04]} {[%emt 00:00:02]}
h4 {[%clk 00:00:05]} {[%emt 00:00:03]} 55. gxh4 {[%clk 00:00:05]} {[%emt
00:00:02]} gxh4 {[%clk 00:00:07]} 56. Kf3 {[%clk 00:00:06]} a2 {[%clk
00:00:06]} {[%emt 00:00:03]} 57. Kg2 {[%clk 00:00:04]} {[%emt 00:00:04]} h3+
{[%clk 00:00:04]} {[%emt 00:00:04]} 58. Kh2 {[%clk 00:00:05]} {[%emt 00:00:01]}
Kd7 {[%clk 00:00:04]} {[%emt 00:00:02]} 59. f4 {[%clk 00:00:05]} {[%emt
00:00:02]} Ke7 {[%clk 00:00:05]} 60. f5 {[%clk 00:00:06]} Kf7 {[%clk 00:00:07]}
61. Ra4 {[%clk 00:00:03]} {[%emt 00:00:05]} Kf6 {[%clk 00:00:08]} {[%emt
00:00:01]} 62. Ra5 {[%clk 00:00:05]} Kg5 {[%clk 00:00:08]} 63. Ra6 {[%clk
00:00:04]} {[%emt 00:00:02]} Kxf5 {[%clk 00:00:09]} {[%emt 00:00:02]} 64. Ra5+
{[%clk 00:00:06]} Ke4 {[%clk 00:00:09]} {[%emt 00:00:02]} 65. Ra4+ {[%clk
00:00:06]} {[%emt 00:00:02]} Kd5 {[%clk 00:00:10]} 66. Ra5+ {[%clk 00:00:07]}
{[%emt 00:00:02]} Kc4 {[%clk 00:00:11]} {[%emt 00:00:01]} 67. Ra8 {[%clk
00:00:08]} Kb5 {[%clk 00:00:06]} {[%emt 00:00:06]} 68. Rb8+ {[%clk 00:00:07]}
{[%emt 00:00:03]} Kc6 {[%clk 00:00:06]} {[%emt 00:00:03]} 69. Ra8 {[%clk
00:00:08]} {[%emt 00:00:01]} Kb7 {[%clk 00:00:07]} 70. Ra3 {[%clk 00:00:09]}
{[%emt 00:00:01]} Kc7 {[%clk 00:00:07]} {[%emt 00:00:02]} 71. Ra7+ {[%clk
00:00:08]} {[%emt 00:00:03]} Kd6 {[%clk 00:00:08]} {[%emt 00:00:02]} 72. Ra8
{[%clk 00:00:09]} Ke7 {[%clk 00:00:08]} {[%emt 00:00:01]} 73. Ra7+ {[%clk
00:00:10]} Kf6 {[%clk 00:00:09]} {[%emt 00:00:02]} 74. Ra6+ {[%clk 00:00:11]}
{[%emt 00:00:01]} Kg7 {[%clk 00:00:10]} 75. Ra7+ {[%clk 00:00:12]} {[%emt
00:00:01]} Kh8 {[%clk 00:00:11]} 76. Ra8+ {[%clk 00:00:13]} Kg7 {[%clk
00:00:12]} 77. Ra7+ {[%clk 00:00:14]} Kh8 {[%clk 00:00:13]} {[%emt 00:00:02]}
78. Ra8+ {[%clk 00:00:15]} Kg7 {[%clk 00:00:14]} {[%emt 00:00:02]} 79. Ra7+
{[%clk 00:00:17]} {[%emt 00:00:02]} Kh8 {[%clk 00:00:14]} 1/2-1/2

[Event "Blixt-SM 2025"]
[Site "Norrköping, Sweden"]
[Date "2025.09.26"]
[Round "8.7"]
[White "Iwraeus, Lowe"]
[Black "Karlsson, Stefan 2005"]
[Result "0-1"]
[TimeControl "3 min + 2 sec/move"]
[WhiteElo "2060"]
[BlackElo "2112"]

1. d4 {[%clk 00:03:02]} {[%emt 00:00:02]} d5 {[%clk 00:02:59]} {[%emt
00:00:05]} 2. Nf3 {[%clk 00:03:03]} {[%emt 00:00:01]} Nf6 {[%clk 00:03:00]}
{[%emt 00:00:01]} 3. g3 {[%clk 00:03:05]} g6 {[%clk 00:02:59]} {[%emt
00:00:03]} 4. Bg2 {[%clk 00:03:06]} Bg7 {[%clk 00:03:00]} 5. O-O {[%clk
00:03:06]} {[%emt 00:00:01]} O-O {[%clk 00:03:01]} {[%emt 00:00:01]} 6. b3
{[%clk 00:03:08]} c5 {[%clk 00:02:59]} {[%emt 00:00:04]} 7. c3 {[%clk
00:03:07]} {[%emt 00:00:03]} Nc6 {[%clk 00:02:57]} {[%emt 00:00:03]} 8. Bb2
{[%clk 00:03:08]} {[%emt 00:00:02]} Nd7 {[%clk 00:02:46]} {[%emt 00:00:13]} 9.
Nbd2 {[%clk 00:03:06]} {[%emt 00:00:04]} e5 {[%clk 00:02:45]} {[%emt 00:00:03]}
10. dxe5 {[%clk 00:03:04]} {[%emt 00:00:03]} Ndxe5 {[%clk 00:02:46]} 11. Nxe5
{[%clk 00:03:05]} {[%emt 00:00:02]} Nxe5 {[%clk 00:02:42]} {[%emt 00:00:07]} 12.
Nf3 {[%clk 00:03:05]} {[%emt 00:00:02]} Be6 {[%clk 00:02:40]} {[%emt 00:00:03]}
13. Nxe5 {[%clk 00:02:53]} {[%emt 00:00:14]} Bxe5 {[%clk 00:02:41]} 14. Qc2
{[%clk 00:02:43]} {[%emt 00:00:12]} Qe7 {[%clk 00:02:15]} {[%emt 00:00:28]} 15.
Rad1 {[%clk 00:02:34]} {[%emt 00:00:12]} Rfd8 {[%clk 00:02:13]} {[%emt
00:00:03]} 16. Rd2 {[%clk 00:02:28]} {[%emt 00:00:08]} Rd7 {[%clk 00:02:01]}
{[%emt 00:00:14]} 17. Rfd1 {[%clk 00:02:29]} Rad8 {[%clk 00:02:01]} {[%emt
00:00:01]} 18. h3 {[%clk 00:02:20]} {[%emt 00:00:12]} Bg7 {[%clk 00:01:58]}
{[%emt 00:00:06]} 19. e3 {[%clk 00:02:11]} {[%emt 00:00:11]} h5 {[%clk
00:01:53]} {[%emt 00:00:06]} 20. c4 {[%clk 00:01:44]} {[%emt 00:00:29]} dxc4
{[%clk 00:01:23]} {[%emt 00:00:32]} 21. Rxd7 {[%clk 00:01:31]} {[%emt
00:00:16]} Rxd7 {[%clk 00:01:24]} 22. Rxd7 {[%clk 00:01:30]} {[%emt 00:00:03]}
Qxd7 {[%clk 00:01:25]} 23. Bxg7 {[%clk 00:01:26]} {[%emt 00:00:06]} Kxg7 {[%clk
00:01:22]} {[%emt 00:00:05]} 24. bxc4 {[%clk 00:01:24]} {[%emt 00:00:05]} b6
{[%clk 00:01:12]} {[%emt 00:00:12]} 25. h4 {[%clk 00:01:21]} {[%emt 00:00:04]}
Kg8 {[%clk 00:01:10]} {[%emt 00:00:04]} 26. a3 {[%clk 00:01:16]} {[%emt
00:00:08]} Bf5 {[%clk 00:01:00]} {[%emt 00:00:11]} 27. Qc1 {[%clk 00:01:15]}
{[%emt 00:00:03]} Qd3 {[%clk 00:00:59]} {[%emt 00:00:03]} 28. Bf1 {[%clk
00:01:15]} {[%emt 00:00:03]} Qb3 {[%clk 00:00:54]} {[%emt 00:00:07]} 29. Be2
{[%clk 00:01:06]} {[%emt 00:00:11]} Bd3 {[%clk 00:00:50]} {[%emt 00:00:04]} 30.
Bxd3 {[%clk 00:00:58]} {[%emt 00:00:11]} Qxd3 {[%clk 00:00:51]} 31. Kg2 {[%clk
00:00:50]} {[%emt 00:00:11]} Qe4+ {[%clk 00:00:50]} {[%emt 00:00:02]} 32. f3
{[%clk 00:00:40]} {[%emt 00:00:12]} Qd3 {[%clk 00:00:51]} {[%emt 00:00:01]} 33.
Kf2 {[%clk 00:00:41]} Qb3 {[%clk 00:00:51]} {[%emt 00:00:03]} 34. Ke2 {[%clk
00:00:40]} {[%emt 00:00:03]} Qa2+ {[%clk 00:00:47]} {[%emt 00:00:07]} 35. Qd2
{[%clk 00:00:24]} {[%emt 00:00:18]} Qxc4+ {[%clk 00:00:46]} {[%emt 00:00:02]}
36. Kf2 {[%clk 00:00:25]} {[%emt 00:00:01]} Qb3 {[%clk 00:00:42]} {[%emt
00:00:06]} 37. Qc1 {[%clk 00:00:26]} {[%emt 00:00:02]} Qa2+ {[%clk 00:00:42]}
{[%emt 00:00:02]} 38. Kg1 {[%clk 00:00:26]} {[%emt 00:00:01]} Qe2 {[%clk
00:00:41]} {[%emt 00:00:03]} 39. f4 {[%clk 00:00:22]} {[%emt 00:00:06]} Qf3
{[%clk 00:00:40]} {[%emt 00:00:02]} 40. Kh2 {[%clk 00:00:23]} {[%emt 00:00:01]}
Qf2+ {[%clk 00:00:41]} 41. Kh3 {[%clk 00:00:23]} {[%emt 00:00:02]} Qe2 {[%clk
00:00:35]} {[%emt 00:00:08]} 42. Qc3 {[%clk 00:00:23]} {[%emt 00:00:02]} Qd1
{[%clk 00:00:20]} {[%emt 00:00:17]} 43. Qe5 {[%clk 00:00:16]} {[%emt 00:00:09]}
Qh1# {[%clk 00:00:19]} {[%emt 00:00:03]} 0-1

[Event "Blixt-SM 2025"]
[Site "Norrköping, Sweden"]
[Date "2025.09.26"]
[Round "10.3"]
[White "Religa, Marek"]
[Black "Grahn, Vidar"]
[Result "0-1"]
[TimeControl "3 min + 2 sec/move"]
[BlackTitle "FM"]
[WhiteElo "2207"]
[BlackElo "2236"]

1. e4 {[%clk 00:03:04]} {[%emt 00:09:41]} c5 {[%clk 00:03:03]} {[%emt
00:00:02]} 2. Nf3 {[%clk 00:03:05]} Nc6 {[%clk 00:03:04]} 3. d4 {[%clk
00:03:06]} cxd4 {[%clk 00:03:05]} 4. Nxd4 {[%clk 00:03:07]} {[%emt 00:00:01]}
e6 {[%clk 00:03:07]} 5. Nc3 {[%clk 00:03:04]} {[%emt 00:00:05]} Qc7 {[%clk
00:03:08]} 6. Be3 {[%clk 00:03:04]} {[%emt 00:00:02]} a6 {[%clk 00:03:09]} 7.
Qf3 {[%clk 00:03:05]} Nf6 {[%clk 00:03:10]} {[%emt 00:00:02]} 8. O-O-O {[%clk
00:02:58]} {[%emt 00:00:08]} Ne5 {[%clk 00:03:12]} 9. Qg3 {[%clk 00:02:57]}
{[%emt 00:00:03]} b5 {[%clk 00:03:13]} 10. f4 {[%clk 00:02:58]} Neg4 {[%clk
00:03:15]} 11. Bd2 {[%clk 00:02:47]} {[%emt 00:00:14]} b4 {[%clk 00:03:08]}
{[%emt 00:00:09]} 12. Na4 {[%clk 00:02:47]} {[%emt 00:00:02]} h5 {[%clk
00:03:07]} {[%emt 00:00:02]} 13. Bd3 {[%clk 00:02:48]} {[%emt 00:00:01]} d5
{[%clk 00:03:05]} {[%emt 00:00:04]} 14. e5 {[%clk 00:02:48]} {[%emt 00:00:02]}
Ne4 {[%clk 00:03:07]} 15. Bxe4 {[%clk 00:02:47]} {[%emt 00:00:03]} dxe4 {[%clk
00:03:07]} {[%emt 00:00:02]} 16. h3 {[%clk 00:02:42]} {[%emt 00:00:07]} Nh6
{[%clk 00:03:06]} {[%emt 00:00:03]} 17. Qb3 {[%clk 00:02:42]} {[%emt 00:00:01]}
Rb8 {[%clk 00:02:59]} {[%emt 00:00:08]} 18. g4 {[%clk 00:02:43]} Bd7 {[%clk
00:03:00]} {[%emt 00:00:02]} 19. f5 {[%clk 00:02:16]} {[%emt 00:00:30]} Qa5
{[%clk 00:02:42]} {[%emt 00:00:19]} 20. fxe6 {[%clk 00:02:02]} {[%emt
00:00:16]} fxe6 {[%clk 00:02:38]} {[%emt 00:00:07]} 21. Nxe6 {[%clk 00:01:14]}
{[%emt 00:00:50]} Qxa4 {[%clk 00:02:34]} {[%emt 00:00:05]} 22. Nc7+ {[%clk
00:00:55]} {[%emt 00:00:21]} Kd8 {[%clk 00:02:31]} {[%emt 00:00:05]} 23. Qxa4
{[%clk 00:00:11]} {[%emt 00:00:46]} Bxa4 {[%clk 00:02:32]} {[%emt 00:00:01]} 24.
Nxa6 {[%clk 00:00:12]} {[%emt 00:00:02]} Ra8 {[%clk 00:02:00]} {[%emt
00:00:32]} 25. Nxb4 {[%clk 00:00:14]} {[%emt 00:00:06]} Bxb4 {[%clk 00:01:35]}
{[%emt 00:00:26]} 26. Bxb4+ {[%clk 00:00:16]} Kc7 {[%clk 00:01:35]} {[%emt
00:00:01]} 27. b3 {[%clk 00:00:11]} {[%emt 00:00:08]} Bc6 {[%clk 00:01:35]}
{[%emt 00:00:01]} 28. g5 {[%clk 00:00:08]} {[%emt 00:00:06]} Nf5 {[%clk
00:01:35]} {[%emt 00:00:01]} 29. g6 {[%clk 00:00:06]} {[%emt 00:00:05]} Rxa2
{[%clk 00:01:34]} {[%emt 00:00:03]} 30. Kb1 {[%clk 00:00:04]} {[%emt 00:00:03]}
Rha8 {[%clk 00:01:34]} {[%emt 00:00:02]} 31. Bc3 {[%clk 00:00:06]} e3 {[%clk
00:01:30]} {[%emt 00:00:06]} 32. Rhe1 {[%clk 00:00:07]} Be4 {[%clk 00:01:26]}
{[%emt 00:00:05]} 33. Rc1 {[%clk 00:00:06]} {[%emt 00:00:04]} R2a6 {[%clk
00:01:10]} {[%emt 00:00:18]} 34. Kb2 {[%clk 00:00:06]} {[%emt 00:00:02]} Rxg6
{[%clk 00:01:10]} {[%emt 00:00:02]} 35. Rcd1 {[%clk 00:00:04]} {[%emt
00:00:04]} Rg2 {[%emt 00:00:02]} 36. Rc1 {[%emt 00:00:02]} e2 {[%clk 00:01:02]}
{[%emt 00:00:09]} 37. e6 {[%clk 00:00:07]} Re8 {[%clk 00:01:02]} {[%emt
00:00:02]} 38. Ra1 {[%clk 00:00:06]} {[%emt 00:00:03]} Rxe6 {[%clk 00:01:01]}
{[%emt 00:00:02]} 39. Ra7+ {[%clk 00:00:07]} Kb6 {[%clk 00:01:02]} {[%emt
00:00:01]} 40. Rf7 {[%clk 00:00:04]} {[%emt 00:00:05]} Nd6 {[%clk 00:00:54]}
{[%emt 00:00:10]} 41. Bd4+ {[%clk 00:00:06]} Kc6 {[%clk 00:00:55]} 42. Ra1
{[%clk 00:00:06]} {[%emt 00:00:02]} Nxf7 {[%clk 00:00:55]} {[%emt 00:00:02]}
0-1